bitfinex-derivatives/quotes_ETHF0:USTF0_20260117
["timestamp","ask_amount","ask_price","bid_price","bid_amount"]
[1768626344456,4.9830742,3294.7,3293.1,0.13665003]
[1768626344657,4.727,3294.7,3293.1,0.13665003]
[1768626347565,0.14125194,3294.8,3293.1,0.13665003]
[1768626347865,1.94507812,3294.7,3293.1,0.13665003]
[1768626348068,1.689,3294.7,3293.1,0.13665003]
[1768626352374,1.689,3294.7,3293.2,0.13161129]
[1768626359682,0.14125194,3294.8,3293.2,0.13161129]
[1768626359978,1.67911268,3294.7,3293.2,0.13161129]
[1768626360169,1.423,3294.7,3293.2,0.13161129]
[1768626362981,1.55671581,3294.7,3293.2,0.13161129]
[1768626373199,0.25626388,3294.6,3293.2,0.13161129]
[1768626373391,1.55671581,3294.7,3293.2,0.13161129]
[1768626373591,0.25626469,3294.6,3293.2,0.13161129]
[1768626373796,1.55671581,3294.7,3293.2,0.13161129]
[1768626373997,0.2562647,3294.6,3293.2,0.13161129]
[1768626374298,1.55671581,3294.7,3293.2,0.13161129]
[1768626374503,0.25627557,3294.6,3293.2,0.13161129]
[1768626374697,1.55671581,3294.7,3293.2,0.13161129]
[1768626374897,0.25627558,3294.6,3293.2,0.13161129]
[1768626375098,1.55671581,3294.7,3293.2,0.13161129]
[1768626375298,0.25627557,3294.6,3293.2,0.13161129]
[1768626375493,1.55671581,3294.7,3293.2,0.13161129]
[1768626375692,0.25628665,3294.6,3293.2,0.13161129]
[1768626375898,1.55671581,3294.7,3293.2,0.13161129]
[1768626376199,0.25628665,3294.6,3293.2,0.13161129]
[1768626376398,1.55671581,3294.7,3293.2,0.13161129]
[1768626376600,0.25630034,3294.6,3293.2,0.13161129]
[1768626376801,1.55671581,3294.7,3293.2,0.13161129]
[1768626377103,0.25630035,3294.6,3293.2,0.13161129]
[1768626377303,1.55671581,3294.7,3293.2,0.13161129]
[1768626377499,0.25631094,3294.6,3293.2,0.13161129]
[1768626377702,0.13371581,3294.7,3293.2,0.13161129]
[1768626378002,0.2563108,3294.6,3293.2,0.13161129]
[1768626378200,1.82271581,3294.7,3293.2,0.13161129]
[1768626378395,0.25631066,3294.6,3293.2,0.13161129]
[1768626378703,1.82271581,3294.7,3293.2,0.13161129]
[1768626378908,0.25631065,3294.6,3293.2,0.13161129]
[1768626379205,1.82271581,3294.7,3293.2,0.13161129]
[1768626379406,0.25631093,3294.6,3293.2,0.13161129]
[1768626379605,1.82271581,3294.7,3293.2,0.13161129]
[1768626379808,0.25631052,3294.6,3293.2,0.13161129]
[1768626379994,1.82271581,3294.7,3293.2,0.13161129]
[1768626380196,0.25631052,3294.6,3293.2,0.13161129]
[1768626380407,1.82271581,3294.7,3293.2,0.13161129]
[1768626380607,0.25631058,3294.6,3293.2,0.13161129]
[1768626380902,1.82271581,3294.7,3293.2,0.13161129]
[1768626381097,0.25631057,3294.6,3293.2,0.13161129]
[1768626381298,1.82271581,3294.7,3293.2,0.13161129]
[1768626381606,0.25631034,3294.6,3293.2,0.13161129]
[1768626381799,1.82271581,3294.7,3293.2,0.13161129]
[1768626382002,0.25631033,3294.6,3293.2,0.13161129]
[1768626382203,1.82271581,3294.7,3293.2,0.13161129]
[1768626382401,0.25630994,3294.6,3293.2,0.13161129]
[1768626382601,1.82271581,3294.7,3293.2,0.13161129]
[1768626382801,0.25630999,3294.6,3293.2,0.13161129]
[1768626383005,1.82271581,3294.7,3293.2,0.13161129]
[1768626383205,0.25630994,3294.6,3293.2,0.13161129]
[1768626383401,1.82271581,3294.7,3293.2,0.13161129]
[1768626383605,0.25630974,3294.6,3293.2,0.13161129]
[1768626383907,1.82271581,3294.7,3293.2,0.13161129]
[1768626384098,0.2563098,3294.6,3293.2,0.13161129]
[1768626384303,1.82271581,3294.7,3293.2,0.13161129]
[1768626384503,0.25630962,3294.6,3293.2,0.13161129]
[1768626384803,1.82271581,3294.7,3293.2,0.13161129]
[1768626385008,0.25630962,3294.6,3293.2,0.13161129]
[1768626385206,1.82271581,3294.7,3293.2,0.13161129]
[1768626385413,0.25630947,3294.6,3293.2,0.13161129]
[1768626385715,1.82271581,3294.7,3293.2,0.13161129]
[1768626385909,0.25630947,3294.6,3293.2,0.13161129]
[1768626386110,1.82271581,3294.7,3293.2,0.13161129]
[1768626386306,0.25630947,3294.6,3293.2,0.13161129]
[1768626386511,1.82271581,3294.7,3293.2,0.13161129]
[1768626386712,0.25630935,3294.6,3293.2,0.13161129]
[1768626387009,1.82271581,3294.7,3293.2,0.13161129]
[1768626387199,0.2563093,3294.6,3293.2,0.13161129]
[1768626387400,1.82271581,3294.7,3293.2,0.13161129]
[1768626387611,0.25630925,3294.6,3293.2,0.13161129]
[1768626387800,1.82271581,3294.7,3293.2,0.13161129]
[1768626388000,0.25630919,3294.6,3293.2,0.13161129]
[1768626388206,1.82271581,3294.7,3293.2,0.13161129]
[1768626388413,0.25630895,3294.6,3293.2,0.13161129]
[1768626388611,1.82271581,3294.7,3293.2,0.13161129]
[1768626388808,0.25630894,3294.6,3293.2,0.13161129]
[1768626389110,1.82271581,3294.7,3293.2,0.13161129]
[1768626389311,0.25630895,3294.6,3293.2,0.13161129]
[1768626389610,1.82271581,3294.7,3293.2,0.13161129]
[1768626389804,0.25630867,3294.6,3293.2,0.13161129]
[1768626390008,1.82271581,3294.7,3293.2,0.13161129]
[1768626390207,0.25630867,3294.6,3293.2,0.13161129]
[1768626390411,1.82271581,3294.7,3293.2,0.13161129]
[1768626390710,0.2563084,3294.6,3293.2,0.13161129]
[1768626390910,1.82271581,3294.7,3293.2,0.13161129]
[1768626391110,0.2563084,3294.6,3293.2,0.13161129]
[1768626391303,1.82271581,3294.7,3293.2,0.13161129]
[1768626391613,0.25630794,3294.6,3293.2,0.28350129]
[1768626391804,1.82271581,3294.7,3293.2,0.28350129]
[1768626392103,0.25630761,3294.6,3293.2,0.28350129]
[1768626392302,1.82271581,3294.7,3293.2,0.28350129]
[1768626392501,0.25630469,3294.6,3293.2,0.28350129]
[1768626392699,1.82271581,3294.7,3293.2,0.28350129]
[1768626392914,0.25630468,3294.6,3293.2,0.28350129]
[1768626393108,1.82271581,3294.7,3293.2,0.28350129]
[1768626393313,0.25630469,3294.6,3293.2,0.28350129]
[1768626393513,1.82271581,3294.7,3293.2,0.28350129]
[1768626393715,0.25630273,3294.6,3293.2,0.28350129]
[1768626393907,1.82271581,3294.7,3293.2,0.28350129]
[1768626394107,0.25630272,3294.6,3293.2,0.28350129]
[1768626394308,1.82271581,3294.7,3293.2,0.28350129]
[1768626394514,0.25630114,3294.6,3293.2,0.28350129]
[1768626394807,1.82271581,3294.7,3293.2,0.28350129]
[1768626395013,0.25630113,3294.6,3293.2,0.28350129]
[1768626395215,1.82271581,3294.7,3293.2,0.28350129]
[1768626395415,0.25630016,3294.6,3293.2,0.28350129]
[1768626395614,1.82271581,3294.7,3293.2,0.28350129]
[1768626395916,0.25630016,3294.6,3293.2,0.28350129]
[1768626396108,1.82271581,3294.7,3293.2,0.28350129]
[1768626396310,0.25630016,3294.6,3293.2,0.28350129]
[1768626396504,1.82271581,3294.7,3293.2,0.28350129]
[1768626396709,0.25629938,3294.6,3293.2,0.28350129]
[1768626396909,1.82271581,3294.7,3293.2,0.28350129]
[1768626397109,0.25629938,3294.6,3293.2,0.28350129]
[1768626397409,1.82271581,3294.7,3293.2,0.28350129]
[1768626397604,0.25629852,3294.6,3293.2,0.28350129]
[1768626397814,1.82271581,3294.7,3293.2,0.28350129]
[1768626398017,0.25629851,3294.6,3293.2,0.28350129]
[1768626398212,1.82271581,3294.7,3293.2,0.28350129]
[1768626398415,0.25629783,3294.6,3293.2,0.28350129]
[1768626398611,1.82271581,3294.7,3293.2,0.28350129]
[1768626398810,0.25629778,3294.6,3293.2,0.28350129]
[1768626399111,1.82271581,3294.7,3293.2,0.28350129]
[1768626399310,0.25629778,3294.6,3293.4,0.98405293]
[1768626399512,1.82271581,3294.7,3293.4,0.98405293]
[1768626399711,0.25629752,3294.6,3293.4,0.98405293]
[1768626399912,1.82271581,3294.7,3293.4,0.98405293]
[1768626400111,0.25629747,3294.6,3293.4,0.98405293]
[1768626400315,1.82271581,3294.7,3293.4,0.98405293]
[1768626400514,0.25629707,3294.6,3293.4,0.98405293]
[1768626400715,1.82271581,3294.7,3293.4,0.98405293]
[1768626400906,0.25629708,3294.6,3293.4,0.98405293]
[1768626401106,1.82271581,3294.7,3293.4,0.98405293]
[1768626401308,0.25629712,3294.6,3293.4,0.98405293]
[1768626401521,1.82271581,3294.7,3293.4,0.98405293]
[1768626401724,0.25629685,3294.6,3293.4,0.98405293]
[1768626401913,1.82271581,3294.7,3293.4,0.98405293]
[1768626402112,0.25629685,3294.6,3293.4,0.98405293]
[1768626402315,1.82271581,3294.7,3293.4,0.98405293]
[1768626402608,0.2562967,3294.6,3293.4,0.98405293]
[1768626402812,1.82271581,3294.7,3293.4,0.98405293]
[1768626403020,0.25629671,3294.6,3293.4,0.98405293]
[1768626403227,1.82271581,3294.7,3293.4,0.98405293]
[1768626403422,0.39592068,3294.6,3293.3,0.98405293]
[1768626403615,0.13962386,3294.6,3293.3,0.98405293]
[1768626430760,2.67305293,3294.7,3293.3,0.98405293]
[1768626430961,0.25631086,3294.6,3293.3,0.98405293]
[1768626431156,2.67305293,3294.7,3293.3,0.98405293]
[1768626431358,0.25631105,3294.6,3293.3,0.98405293]
[1768626431656,2.67305293,3294.7,3293.3,0.98405293]
[1768626431857,0.25631111,3294.6,3293.3,0.98405293]
[1768626432153,2.67305293,3294.7,3293.3,0.98405293]
[1768626432455,0.25631126,3294.6,3293.3,0.98405293]
[1768626432655,2.67305293,3294.7,3293.3,0.98405293]
[1768626432855,0.25631132,3294.6,3293.3,0.98405293]
[1768626433055,2.67305293,3294.7,3293.3,0.98405293]
[1768626433252,0.25631126,3294.6,3293.3,0.98405293]
[1768626433552,2.67305293,3294.7,3293.3,0.98405293]
[1768626433752,0.2563113,3294.6,3293.3,0.98405293]
[1768626433960,2.67305293,3294.7,3293.3,0.98405293]
[1768626434160,0.25631134,3294.6,3293.3,0.98405293]
[1768626434364,2.67305293,3294.7,3293.3,0.98405293]
[1768626434661,0.25631137,3294.6,3293.3,0.98405293]
[1768626434853,2.67305293,3294.7,3293.3,0.98405293]
[1768626435053,0.25631137,3294.6,3293.3,0.98405293]
[1768626435255,2.67305293,3294.7,3293.3,0.98405293]
[1768626435564,0.25631141,3294.6,3293.3,0.98405293]
[1768626435757,2.67305293,3294.7,3293.3,0.98405293]
[1768626435958,0.2563114,3294.6,3293.3,0.98405293]
[1768626436162,2.67305293,3294.7,3293.3,0.98405293]
[1768626436359,0.25631134,3294.6,3293.3,0.98405293]
[1768626436552,2.67305293,3294.7,3293.3,0.98405293]
[1768626436754,0.25631128,3294.6,3293.3,0.98405293]
[1768626436950,2.67305293,3294.7,3293.3,0.98405293]
[1768626437164,0.25631129,3294.6,3293.3,0.98405293]
[1768626437355,2.67305293,3294.7,3293.3,0.98405293]
[1768626437556,0.25631124,3294.6,3293.3,0.98405293]
[1768626437757,2.67305293,3294.7,3293.3,0.98405293]
[1768626438067,0.25631123,3294.6,3293.3,0.98405293]
[1768626438257,2.67305293,3294.7,3293.3,0.98405293]
[1768626438766,0.25631142,3294.6,3293.3,0.98405293]
[1768626439065,2.67305293,3294.7,3293.3,0.98405293]
[1768626439370,0.25631136,3294.6,3293.3,0.98405293]
[1768626439568,2.67305293,3294.7,3293.3,0.98405293]
[1768626439762,0.25631146,3294.6,3293.3,0.98405293]
[1768626439962,2.67305293,3294.7,3293.3,0.98405293]
[1768626440163,0.25631146,3294.6,3293.3,0.98405293]
[1768626440366,2.67305293,3294.7,3293.3,0.98405293]
[1768626440564,0.25631167,3294.6,3293.3,0.98405293]
[1768626440761,2.67305293,3294.7,3293.3,0.98405293]
[1768626441061,0.25631166,3294.6,3293.3,0.98405293]
[1768626441260,2.67305293,3294.7,3293.3,0.98405293]
[1768626441467,0.25631152,3294.6,3293.3,0.98405293]
[1768626441666,2.67305293,3294.7,3293.3,0.98405293]
[1768626441965,0.25631152,3294.6,3293.3,0.98405293]
[1768626442261,2.67305293,3294.7,3293.3,0.98405293]
[1768626442463,0.25631143,3294.6,3293.3,0.98405293]
[1768626442664,2.67305293,3294.7,3293.3,0.98405293]
[1768626442860,0.25631143,3294.6,3293.3,0.98405293]
[1768626443063,2.67305293,3294.7,3293.3,0.98405293]
[1768626443258,0.25631137,3294.6,3293.3,0.98405293]
[1768626443553,2.67305293,3294.7,3293.3,0.98405293]
[1768626443758,0.25631134,3294.6,3293.3,0.98405293]
[1768626444058,2.67305293,3294.7,3293.3,0.98405293]
[1768626444365,0.25631134,3294.6,3293.3,0.98405293]
[1768626444666,2.67305293,3294.7,3293.3,0.98405293]
[1768626444867,0.25631121,3294.6,3293.3,0.98405293]
[1768626445058,2.67305293,3294.7,3293.3,0.98405293]
[1768626445254,0.25631121,3294.6,3293.3,0.98405293]
[1768626445459,2.67305293,3294.7,3293.3,0.98405293]
[1768626445659,0.25631152,3294.6,3293.3,0.98405293]
[1768626445958,2.67305293,3294.7,3293.3,0.98405293]
[1768626446258,0.25631141,3294.6,3293.3,0.98405293]
[1768626446454,2.67305293,3294.7,3293.3,0.98405293]
[1768626446658,0.25631133,3294.6,3293.3,0.98405293]
[1768626446855,2.67305293,3294.7,3293.3,0.98405293]
[1768626447060,0.25631134,3294.6,3293.3,0.98405293]
[1768626447260,2.67305293,3294.7,3293.3,0.98405293]
[1768626447557,0.25631141,3294.6,3293.3,0.98405293]
[1768626447758,2.67305293,3294.7,3293.3,0.98405293]
[1768626448053,0.25631147,3294.6,3293.3,0.98405293]
[1768626448258,2.67305293,3294.7,3293.3,0.98405293]
[1768626448457,0.2563114,3294.6,3293.3,0.98405293]
[1768626448664,2.67305293,3294.7,3293.3,0.98405293]
[1768626448962,0.25631141,3294.6,3293.3,0.98405293]
[1768626449160,2.67305293,3294.7,3293.3,0.98405293]
[1768626449358,0.25631167,3294.6,3293.3,0.98405293]
[1768626449552,2.67305293,3294.7,3293.3,0.98405293]
[1768626449758,0.25631161,3294.6,3293.3,0.98405293]
[1768626449953,2.67305293,3294.7,3293.3,0.98405293]
[1768626450158,0.25631167,3294.6,3293.3,0.98405293]
[1768626450365,2.67305293,3294.7,3293.3,0.98405293]
[1768626450562,0.25631157,3294.6,3293.3,0.98405293]
[1768626450766,2.67305293,3294.7,3293.3,0.98405293]
[1768626451064,0.25631158,3294.6,3293.3,0.98405293]
[1768626451365,2.67305293,3294.7,3293.3,0.98405293]
[1768626451665,0.25631152,3294.6,3293.3,0.98405293]
[1768626451863,2.67305293,3294.7,3293.3,0.98405293]
[1768626452063,0.25631158,3294.6,3293.3,0.98405293]
[1768626452271,2.67305293,3294.7,3293.3,0.98405293]
[1768626452463,0.25631159,3294.6,3293.3,0.98405293]
[1768626452662,2.67305293,3294.7,3293.3,0.98405293]
[1768626452864,0.25631154,3294.6,3293.3,0.98405293]
[1768626453164,2.67305293,3294.7,3293.3,0.98405293]
[1768626453367,0.25631163,3294.6,3293.3,0.98405293]
[1768626453662,2.67305293,3294.7,3293.3,0.98405293]
[1768626453865,0.25631161,3294.6,3293.3,0.98405293]
[1768626454057,2.67305293,3294.7,3293.3,0.98405293]
[1768626454261,0.25631164,3294.6,3293.3,0.98405293]
[1768626454473,2.67305293,3294.7,3293.3,0.98405293]
[1768626454670,0.25631169,3294.6,3293.3,0.98405293]
[1768626454862,2.67305293,3294.7,3293.3,0.98405293]
[1768626455062,0.25631168,3294.6,3293.3,0.98405293]
[1768626455259,2.67305293,3294.7,3293.3,0.98405293]
[1768626455463,0.25631156,3294.6,3293.3,0.98405293]
[1768626455759,2.67305293,3294.7,3293.3,0.98405293]
[1768626455961,0.25631156,3294.6,3293.3,0.98405293]
[1768626456173,2.67305293,3294.7,3293.3,0.98405293]
[1768626456373,0.25631161,3294.6,3293.3,0.98405293]
[1768626456572,2.67305293,3294.7,3293.3,0.98405293]
[1768626456774,0.25631161,3294.6,3293.3,0.98405293]
[1768626457070,2.67305293,3294.7,3293.3,0.98405293]
[1768626457273,0.25631161,3294.6,3293.3,0.98405293]
[1768626457472,2.67305293,3294.7,3293.3,0.98405293]
[1768626457673,0.25631161,3294.6,3293.3,0.98405293]
[1768626457864,2.67305293,3294.7,3293.3,0.98405293]
[1768626458065,0.25631162,3294.6,3293.3,0.98405293]
[1768626458265,2.67305293,3294.7,3293.3,0.98405293]
[1768626458465,0.25631165,3294.6,3293.3,0.98405293]
[1768626458664,2.67305293,3294.7,3293.3,0.98405293]
[1768626458873,0.2563116,3294.6,3293.3,0.98405293]
[1768626459075,2.67305293,3294.7,3293.3,0.98405293]
[1768626459276,0.25631156,3294.6,3293.2,0.28350129]
[1768626459574,1.689,3294.7,3293.2,0.28350129]
[1768626459769,0.2563116,3294.6,3293.2,0.28350129]
[1768626459967,1.689,3294.7,3293.2,0.28350129]
[1768626460270,0.2563116,3294.6,3293.2,0.28350129]
[1768626460471,1.689,3294.7,3293.2,0.28350129]
[1768626460671,0.25631161,3294.6,3293.2,0.28350129]
[1768626460973,1.689,3294.7,3293.2,0.28350129]
[1768626461171,0.25631161,3294.6,3293.2,0.28350129]
[1768626461377,1.689,3294.7,3293.2,0.28350129]
[1768626461574,0.25631161,3294.6,3293.2,0.28350129]
[1768626461774,1.689,3294.7,3293.2,0.28350129]
[1768626461970,0.25631172,3294.6,3293.2,0.28350129]
[1768626462174,1.689,3294.7,3293.2,0.28350129]
[1768626462377,0.25631172,3294.6,3293.2,0.28350129]
[1768626462580,1.689,3294.7,3293.2,0.28350129]
[1768626462772,0.25631171,3294.6,3293.2,0.28350129]
[1768626462973,1.689,3294.7,3293.2,0.28350129]
[1768626463174,0.25631172,3294.6,3293.2,0.28350129]
[1768626463378,1.689,3294.7,3293.2,0.28350129]
[1768626463581,0.25631177,3294.6,3293.2,0.28350129]
[1768626463780,1.689,3294.7,3293.2,0.28350129]
[1768626463971,0.25631178,3294.6,3293.2,0.28350129]
[1768626464170,1.689,3294.7,3293.2,0.28350129]
[1768626464470,0.25631184,3294.6,3293.2,0.28350129]
[1768626464769,1.689,3294.7,3293.2,0.28350129]
[1768626464970,0.25631179,3294.6,3293.2,0.28350129]
[1768626465178,1.689,3294.7,3293.2,0.28350129]
[1768626465378,0.25631176,3294.6,3293.2,0.28350129]
[1768626465580,1.689,3294.7,3293.2,0.28350129]
[1768626465781,0.25631176,3294.6,3293.2,0.28350129]
[1768626465983,1.689,3294.7,3293.2,0.28350129]
[1768626466183,0.25631176,3294.6,3293.2,0.28350129]
[1768626466374,1.689,3294.7,3293.2,0.28350129]
[1768626466575,0.25631155,3294.6,3293.2,0.28350129]
[1768626466875,1.689,3294.7,3293.2,0.28350129]
[1768626467075,0.2563116,3294.6,3293.2,0.28350129]
[1768626467278,1.689,3294.7,3293.2,0.28350129]
[1768626467481,0.25631154,3294.6,3293.2,0.28350129]
[1768626467684,1.689,3294.7,3293.2,0.28350129]
[1768626467885,0.25631154,3294.6,3293.3,0.1442845]
[1768626468085,1.689,3294.8,3293.3,0.1442845]
[1768626468287,0.25631102,3294.7,3293.3,0.1442845]
[1768626468487,0.25631102,3294.6,3293.3,0.1442845]
[1768626468689,1.689,3294.8,3293.3,0.1442845]
[1768626468986,0.25631108,3294.7,3293.3,0.1442845]
[1768626469179,0.25631108,3294.6,3293.3,0.1442845]
[1768626469379,1.689,3294.8,3293.3,0.1442845]
[1768626469579,0.25631099,3294.7,3293.3,0.1442845]
[1768626469781,0.25631099,3294.6,3293.3,0.1442845]
[1768626469980,1.689,3294.8,3293.3,0.1442845]
[1768626470177,0.25631099,3294.7,3293.3,0.1442845]
[1768626470376,0.25631099,3294.6,3293.3,0.1442845]
[1768626470587,1.689,3294.8,3293.3,0.1442845]
[1768626470782,0.25631071,3294.7,3293.3,0.1442845]
[1768626470982,0.25631071,3294.6,3293.3,0.1442845]
[1768626471187,1.689,3294.8,3293.3,0.1442845]
[1768626471389,0.25631071,3294.7,3293.3,0.1442845]
[1768626471581,0.25631071,3294.6,3293.3,0.1442845]
[1768626471782,1.689,3294.8,3293.3,0.1442845]
[1768626471987,0.25631066,3294.7,3293.3,0.1442845]
[1768626472186,0.25631066,3294.6,3293.3,0.1442845]
[1768626472377,1.689,3294.8,3293.3,0.1442845]
[1768626472581,0.2563107,3294.7,3293.3,0.1442845]
[1768626472790,0.2563107,3294.6,3293.3,0.1442845]
[1768626472991,1.689,3294.8,3293.3,0.1442845]
[1768626473183,0.25631071,3294.7,3293.3,0.1442845]
[1768626473483,0.25631071,3294.6,3293.3,0.1442845]
[1768626473676,1.689,3294.8,3293.3,0.1442845]
[1768626473883,0.25631073,3294.7,3293.3,0.1442845]
[1768626474176,0.25631073,3294.6,3293.3,0.1442845]
[1768626474380,1.689,3294.8,3293.3,0.1442845]
[1768626474580,0.25631058,3294.7,3293.3,0.1442845]
[1768626474779,0.25631058,3294.6,3293.3,0.1442845]
[1768626475075,1.689,3294.8,3293.3,0.1442845]
[1768626475281,0.25631061,3294.7,3293.3,0.1442845]
[1768626475580,0.25631061,3294.6,3293.3,0.1442845]
[1768626475777,1.689,3294.8,3293.3,0.1442845]
[1768626475976,0.25631051,3294.7,3293.3,0.1442845]
[1768626476181,0.25631051,3294.6,3293.3,0.1442845]
[1768626476381,1.689,3294.8,3293.3,0.1442845]
[1768626476584,0.25631058,3294.7,3293.3,0.1442845]
[1768626476791,0.25631058,3294.6,3293.3,0.1442845]
[1768626476984,1.689,3294.8,3293.3,0.1442845]
[1768626477184,0.25631064,3294.7,3293.3,0.1442845]
[1768626477390,0.25631064,3294.6,3293.3,0.1442845]
[1768626477594,1.689,3294.8,3293.3,0.1442845]
[1768626477893,0.25631054,3294.7,3293.3,0.1442845]
[1768626478189,0.25631054,3294.6,3293.3,0.1442845]
[1768626478391,1.689,3294.8,3293.3,0.1442845]
[1768626478591,0.25631065,3294.7,3293.3,0.1442845]
[1768626478792,0.25631065,3294.6,3293.3,0.1442845]
[1768626478993,1.689,3294.8,3293.3,0.1442845]
[1768626479192,0.25631071,3294.7,3293.3,0.1442845]
[1768626479497,0.25631071,3294.6,3293.3,0.1442845]
[1768626479695,1.689,3294.8,3293.3,0.1442845]
[1768626479991,0.25631069,3294.7,3293.3,0.1442845]
[1768626480183,0.25631069,3294.6,3293.3,0.1442845]
[1768626480383,1.689,3294.8,3293.3,0.1442845]
[1768626480679,0.25631072,3294.7,3293.3,0.1442845]
[1768626480884,0.25631072,3294.6,3293.3,0.1442845]
[1768626481084,1.689,3294.8,3293.3,0.1442845]
[1768626481383,0.25631078,3294.7,3293.3,0.1442845]
[1768626481583,0.25631078,3294.6,3293.3,0.1442845]
[1768626481793,1.689,3294.8,3293.3,0.1442845]
[1768626482099,0.25631073,3294.7,3293.3,0.1442845]
[1768626482287,0.25631073,3294.6,3293.3,0.1442845]
[1768626482488,1.82979945,3294.8,3293.3,0.1442845]
[1768626482682,0.25631076,3294.7,3293.3,0.1442845]
[1768626482987,0.25631076,3294.6,3293.3,0.1442845]
[1768626483191,1.82979945,3294.8,3293.3,0.1442845]
[1768626483398,0.25631069,3294.7,3293.3,0.1442845]
[1768626483582,0.25631069,3294.6,3293.3,0.1442845]
[1768626483786,1.82979945,3294.8,3293.3,0.1442845]
[1768626483992,0.25631064,3294.7,3293.3,0.1442845]
[1768626484289,0.25631064,3294.6,3293.3,0.1442845]
[1768626484493,1.82979945,3294.8,3293.3,0.1442845]
[1768626484686,0.25631063,3294.7,3293.3,0.1442845]
[1768626484892,0.25631063,3294.6,3293.3,0.1442845]
[1768626485092,1.82979945,3294.8,3293.3,0.1442845]
[1768626485396,0.25631075,3294.7,3293.3,0.1442845]
[1768626485596,0.25631075,3294.6,3293.3,0.1442845]
[1768626485796,1.82979945,3294.8,3293.3,0.1442845]
[1768626485999,0.25631079,3294.7,3293.3,0.1442845]
[1768626486297,0.25631079,3294.6,3293.3,0.1442845]
[1768626486498,1.82979945,3294.8,3293.3,0.1442845]
[1768626486704,0.25631059,3294.7,3293.3,0.1442845]
[1768626487007,0.25631059,3294.6,3293.3,0.1442845]
[1768626487187,1.82979945,3294.8,3293.3,0.1442845]
[1768626487390,0.25631057,3294.7,3293.3,0.1442845]
[1768626487589,0.25631057,3294.6,3293.3,0.1442845]
[1768626487792,1.82979945,3294.8,3293.3,0.1442845]
[1768626487993,0.25631058,3294.7,3293.3,0.1442845]
[1768626488291,0.25631058,3294.6,3293.3,0.1442845]
[1768626488496,1.82979945,3294.8,3293.3,0.1442845]
[1768626488697,0.25631054,3294.7,3293.3,0.1442845]
[1768626488897,0.25631054,3294.6,3293.3,0.1442845]
[1768626489194,1.82979945,3294.8,3293.3,0.1442845]
[1768626489398,0.25631051,3294.7,3293.3,0.1442845]
[1768626489600,0.25631051,3294.6,3293.3,0.1442845]
[1768626489790,1.82979945,3294.8,3293.3,0.1442845]
[1768626489990,0.2563105,3294.7,3293.3,0.1442845]
[1768626490190,0.2563105,3294.6,3293.3,0.1442845]
[1768626490392,1.82979945,3294.8,3293.3,0.1442845]
[1768626490592,0.25631049,3294.7,3293.3,0.1442845]
[1768626490793,0.25631049,3294.6,3293.3,0.1442845]
[1768626491094,1.82979945,3294.8,3293.3,0.1442845]
[1768626491301,0.25631034,3294.7,3293.3,0.1442845]
[1768626491495,1.82979945,3294.8,3293.3,0.1442845]
[1768626491698,0.25631038,3294.7,3293.3,0.1442845]
[1768626491899,0.25631037,3294.6,3293.3,0.1442845]
[1768626492098,1.82979945,3294.8,3293.3,0.1442845]
[1768626492297,0.25631027,3294.7,3293.3,0.1442845]
[1768626492596,0.25631027,3294.6,3293.3,0.1442845]
[1768626492904,1.82979945,3294.8,3293.3,0.1442845]
[1768626493103,0.25631033,3294.7,3293.3,0.1442845]
[1768626493296,0.25631033,3294.6,3293.3,0.1442845]
[1768626493496,1.82979945,3294.8,3293.3,0.1442845]
[1768626493791,0.25631034,3294.7,3293.3,0.1442845]
[1768626493996,0.25631034,3294.6,3293.3,0.1442845]
[1768626494195,1.82979945,3294.8,3293.3,0.1442845]
[1768626494402,0.25631049,3294.7,3293.3,0.1442845]
[1768626494607,0.25631049,3294.6,3293.3,0.1442845]
[1768626494797,1.82979945,3294.8,3293.3,0.1442845]
[1768626494998,0.25631038,3294.7,3293.3,0.1442845]
[1768626495198,0.25631038,3294.6,3293.3,0.1442845]
[1768626495400,1.82979945,3294.8,3293.3,0.1442845]
[1768626495607,0.25631024,3294.7,3293.3,0.1442845]
[1768626495807,0.25631024,3294.6,3293.3,0.1442845]
[1768626496010,1.82979945,3294.8,3293.3,0.1442845]
[1768626496201,0.25631021,3294.7,3293.3,0.1442845]
[1768626496400,0.25631021,3294.6,3293.3,0.1442845]
[1768626496601,1.82979945,3294.8,3293.3,0.1442845]
[1768626496801,0.25630734,3294.7,3293.3,0.1442845]
[1768626497001,0.25630734,3294.6,3293.3,0.1442845]
[1768626497303,1.82979945,3294.8,3293.3,0.1442845]
[1768626497500,0.25630642,3294.7,3293.3,0.1442845]
[1768626497701,0.25630642,3294.6,3293.3,0.1442845]
[1768626498009,1.82979945,3294.8,3293.3,0.1442845]
[1768626498207,0.25630641,3294.7,3293.3,0.1442845]
[1768626498413,0.25630641,3294.6,3293.3,0.1442845]
[1768626498708,1.82979945,3294.8,3293.3,0.1442845]
[1768626498910,0.25630488,3294.7,3293.3,0.1442845]
[1768626499210,0.25630488,3294.6,3293.3,0.1442845]
[1768626499508,1.82979945,3294.8,3293.3,0.1442845]
[1768626499709,0.25630428,3294.7,3293.3,0.1442845]
[1768626499909,0.25630428,3294.6,3293.3,0.1442845]
[1768626500109,1.82979945,3294.8,3293.3,0.1442845]
[1768626500312,0.25630323,3294.7,3293.3,0.1442845]
[1768626500509,1.82979945,3294.8,3293.3,0.1442845]
[1768626500712,0.25630014,3294.7,3293.3,0.1442845]
[1768626501011,1.82979945,3294.8,3293.3,0.1442845]
[1768626501210,0.2563001,3294.7,3293.3,0.1442845]
[1768626501412,1.82979945,3294.8,3293.3,0.1442845]
[1768626501611,0.25629706,3294.7,3293.3,0.1442845]
[1768626501808,1.82979945,3294.8,3293.3,0.1442845]
[1768626502012,0.25629718,3294.7,3293.3,0.1442845]
[1768626502208,1.82979945,3294.8,3293.3,0.1442845]
[1768626502404,0.25629458,3294.7,3293.3,0.1442845]
[1768626502610,1.82979945,3294.8,3293.3,0.1442845]
[1768626502805,0.25629452,3294.7,3293.3,0.1442845]
[1768626503012,1.82979945,3294.8,3293.3,0.1442845]
[1768626503310,0.25629464,3294.7,3293.3,0.1442845]
[1768626503511,1.82979945,3294.8,3293.3,0.1442845]
[1768626503708,1.94529286,3294.7,3293.3,0.1442845]
[1768626503912,1.689,3294.7,3293.3,0.1442845]
[1768626514430,1.83035336,3294.7,3293.3,0.1442845]
[1768626518233,1.689,3294.6,3293.3,0.1442845]
[1768626520931,0.00386596,3295.2,3293.3,0.1442845]
[1768626521128,4.66529082,3295.1,3293.4,0.15188]
[1768626521328,0.25629082,3295.0,3293.8,0.98377895]
[1768626521528,4.409,3295.1,3293.8,0.98377895]
[1768626521728,0.2519184,3295.0,3293.8,0.98377895]
[1768626522033,0.14521932,3295.2,3293.8,0.98377895]
[1768626522235,1.94091826,3295.1,3293.8,0.98377895]
[1768626522426,0.25191826,3295.0,3293.8,0.98377895]
[1768626522626,1.689,3295.1,3293.8,0.98377895]
[1768626522827,0.25186336,3295.0,3293.8,0.98377895]
[1768626523027,1.689,3295.1,3293.8,0.98377895]
[1768626523227,0.25186336,3295.0,3293.8,0.98377895]
[1768626523437,1.689,3295.1,3293.8,0.98377895]